bitfinex/quotes_ETHUSD_20241106
["timestamp","ask_amount","ask_price","bid_price","bid_amount"]
[1730859907574,0.1431951,2535.7,2535.0,3.95467]
[1730859907575,0.1431951,2535.7,2535.5,3.94396]
[1730859907778,0.1431951,2535.7,2535.3,3.94426]
[1730859907998,0.1431951,2535.7,2535.6,3.94383]
[1730859908216,0.7788,2537.4,2536.8,3.94182]
[1730859908427,0.7788,2537.4,2536.0,0.01]
[1730859908647,0.7788,2537.4,2536.7,3.94211]
[1730859908949,3.9412,2537.3,2536.2,3.9429]
[1730859909247,3.94231,2536.6,2535.9,0.7532]
[1730859909405,3.94277,2536.3,2535.4,0.7532]
[1730859909605,3.94319,2536.1,2535.1,0.7532]
[1730859910354,3.9448,2535.0,2534.0,0.7532]
[1730859910507,0.7788,2535.1,2534.0,0.7532]
[1730859910711,3.94478,2535.0,2534.0,0.7532]
[1730859911029,0.7788,2535.1,2534.0,0.7532]
[1730859911030,4.417288,2534.9,2534.0,0.7532]
[1730859911201,4.417288,2534.9,2534.1,0.07891144]
[1730859911406,3.9451,2534.8,2534.0,0.7532]
[1730859911659,6.052271,2535.0,2533.5,0.7532]
[1730859911956,3.94573,2534.4,2533.6,0.07892937]
[1730859912109,3.94587,2534.3,2533.6,0.0789305]
[1730859912307,3.94578,2534.4,2533.5,0.7532]
[1730859912617,4.72389,2534.8,2533.8,3.94651]
[1730859912823,0.7788,2534.8,2533.9,0.07891909]
[1730859913031,0.7788,2534.8,2533.9,4.02536909]
[1730859913235,0.7788,2534.8,2533.8,3.94651]
[1730859913446,0.7788,2534.8,2533.9,3.94645]
[1730859913650,4.72388,2534.8,2533.8,3.94651]
[1730859913956,0.7788,2534.8,2534.2,3.94598]
[1730859914120,0.7788,2535.2,2534.3,0.7532]
[1730859914442,3.94461,2535.1,2534.3,0.7532]
[1730859914648,3.94479,2535.0,2534.3,0.7532]
[1730859915155,0.7788,2535.2,2534.3,0.7532]
[1730859915321,3.94461,2535.1,2534.3,0.7532]
[1730859915525,0.7788,2535.2,2534.4,4.02458585]
[1730859915845,0.7788,2535.2,2534.3,0.7532]
[1730859916257,3.94435,2535.3,2534.4,0.07890152]
[1730859916424,0.7716,2535.6,2534.5,3.94554]
[1730859916621,0.7716,2535.6,2534.7,3.94523]
[1730859916935,0.394319,2536.0,2535.1,0.7571]
[1730859916936,4.71484,2536.0,2535.1,0.7571]
[1730859917141,4.71484,2536.0,2535.1,4.70169]
[1730859917566,0.7716,2536.4,2535.3,3.94416]
[1730859917767,4.71423,2536.4,2535.5,3.94388]
[1730859917929,3.94276,2536.3,2535.1,4.70157]
[1730859918264,3.94321,2536.0,2535.1,4.70157]
[1730859918462,3.9429,2536.2,2535.3,3.94429]
[1730859918757,4.71427,2536.4,2535.4,3.94408]
[1730859918948,3.94301,2536.2,2535.4,3.94408]
[1730859919148,4.71427,2536.4,2535.4,3.94408]
[1730859919448,3.94244,2536.5,2535.5,4.02274215]
[1730859919655,3.94244,2536.5,2535.8,0.7571]
[1730859919656,3.94248,2536.5,2535.8,0.7571]
[1730859919862,3.94248,2536.5,2535.2,0.01]
[1730859919863,3.94275,2536.3,2535.2,0.7571]
[1730859920025,4.71363,2536.8,2535.2,0.7571]
[1730859920365,3.94227,2536.7,2535.8,3.94352]
[1730859920568,3.94186,2536.9,2535.9,0.7571]
[1730859920858,3.94213,2536.7,2536.0,0.0788367]
[1730859921063,3.94202,2536.8,2535.9,4.70034]
[1730859921358,3.94276,2536.3,2535.9,0.7571]
[1730859921560,3.94276,2536.3,2535.4,0.7571]
[1730859921758,0.7716,2536.6,2535.4,0.7571]
[1730859922058,3.94369,2535.7,2535.4,0.7571]
[1730859922257,3.94337,2535.9,2535.0,0.7571]
[1730859922465,3.94337,2535.9,2535.1,4.023355]
[1730859922632,3.94337,2535.9,2535.0,4.70186]
[1730859922837,9.994951,2536.4,2535.0,0.7571]
[1730859923162,9.994951,2536.4,2534.0,0.46313196]
[1730859923163,0.7716,2535.8,2534.1,0.7571]
[1730859923372,0.7716,2535.8,2534.2,3.94597]
[1730859923578,0.7716,2535.8,2534.1,0.7571]
[1730859923579,3.12173626,2535.0,2534.1,0.7571]
[1730859923869,3.12173626,2535.0,2533.8,0.57807787]
[1730859923870,3.94555,2534.5,2533.8,0.57807787]
[1730859924030,0.7716,2535.1,2534.0,0.7571]
[1730859924232,3.94474,2535.1,2534.1,4.02498399]
[1730859924475,3.94474,2535.1,2534.2,3.946]
[1730859924649,3.94436,2535.3,2534.0,0.7571]
[1730859924833,3.94436,2535.3,2534.1,0.07890305]
[1730859925034,3.94489,2535.0,2534.1,3.94605]
[1730859925233,3.94472,2535.1,2534.1,4.02494306]
[1730859925775,3.94472,2535.1,2534.2,3.94587]
[1730859925974,3.94472,2535.1,2534.3,3.94585]
[1730859926172,3.94472,2535.1,2534.4,0.07890029]
[1730859926330,0.7716,2535.5,2534.6,3.94525]
[1730859926532,3.94396,2535.6,2534.8,0.7571]
[1730859926771,3.9441,2535.5,2534.8,0.7571]
[1730859926949,3.94417,2535.4,2534.8,0.7571]
[1730859927279,3.94396,2535.6,2534.8,0.7571]
[1730859927460,3.94359,2535.8,2534.8,0.7571]
[1730859927640,3.94373,2535.7,2534.8,0.7571]
[1730859927836,3.94411,2535.5,2534.8,0.7571]
[1730859928073,3.94392,2535.6,2534.8,0.7571]
[1730859928369,3.94399,2535.5,2534.8,1.10613917]
[1730859928691,3.9441,2535.5,2534.8,0.7571]
[1730859929383,3.94376,2535.7,2534.8,0.7571]
[1730859929672,3.94376,2535.7,2534.9,0.42868315]
[1730859929876,3.94376,2535.7,2534.8,1.31657595]
[1730859930108,3.94433,2535.3,2534.9,0.34971761]
[1730859930235,3.94401,2535.5,2534.9,0.34971761]
[1730859930434,8.65854,2535.9,2535.0,0.07889175]
[1730859930652,3.0,2536.4,2535.0,0.34968595]
[1730859930971,3.94354,2535.8,2535.1,1.10328595]
[1730859931156,0.7549,2535.7,2535.0,0.34968595]
[1730859931361,4.69802,2536.1,2535.1,0.34963669]
[1730859931669,0.7549,2536.1,2535.3,3.94425]
[1730859931882,4.69806,2536.1,2535.4,0.34963669]
[1730859932032,4.69806,2536.1,2535.5,0.34963669]
[1730859932232,4.69735,2536.5,2535.6,4.29340669]
[1730859932468,3.94274,2536.4,2535.7,0.91134924]
[1730859932679,4.69735,2536.5,2535.8,0.35057684]
[1730859932878,4.69735,2536.5,2535.6,3.94382]
[1730859933188,4.69735,2536.5,2535.9,0.3504342]
[1730859933487,4.0049151,2537.0,2535.9,0.42929452]
[1730859933488,0.7549,2536.8,2535.9,0.42929452]
[1730859933685,0.0631951,2537.0,2536.0,0.3504342]
[1730859933841,0.0631951,2537.0,2536.2,3.9428]
[1730859934184,4.0049651,2537.0,2536.1,0.7536]
[1730859934388,4.40546161,2537.0,2536.2,0.91089052]
[1730859934539,3.94227,2536.7,2536.3,0.3504342]
[1730859934738,3.94256,2536.5,2536.4,0.3504342]
[1730859934964,3.94256,2536.5,2535.8,0.91068707]
[1730859934965,3.94275,2536.3,2535.8,0.91068707]
[1730859935272,3.94275,2536.3,2535.9,0.3502968]
[1730859935484,3.94246,2536.5,2535.7,0.7536]
[1730859935816,3.94246,2536.5,2535.8,0.91078497]
[1730859936081,0.0631951,2537.0,2536.4,0.7536]
[1730859936388,0.0631951,2537.0,2536.6,3.94215]
[1730859936586,0.0631951,2537.0,2536.9,4.69541]
[1730859937063,0.0631951,2537.0,2536.9,0.7536]
[1730859937380,0.0631951,2537.0,2536.5,0.7536]
[1730859937539,0.0631951,2537.0,2536.9,0.55952627]
[1730859937877,0.0631951,2537.0,2536.5,4.77475974]
[1730859938077,0.0631951,2537.0,2536.6,0.34967746]
[1730859938280,0.0631951,2537.0,2536.5,0.7536]
[1730859938582,0.0631951,2537.0,2536.3,3.94267]
[1730859938875,0.0631951,2537.0,2536.6,3.94217]
[1730859939084,0.0631951,2537.0,2536.7,0.07882933]
[1730859939259,0.0631951,2537.0,2536.9,3.94181]
[1730859939599,0.0631951,2537.0,2536.9,0.34956138]
[1730859939982,0.0631951,2537.0,2536.6,3.9422]
[1730859940183,0.0631951,2537.0,2536.7,4.29172029]
[1730859940342,0.0631951,2537.0,2536.7,3.942]
[1730859940543,0.0631951,2537.0,2536.7,3.94212]
[1730859940771,0.0631951,2537.0,2536.6,0.7536]
[1730859940968,0.0631951,2537.0,2536.7,0.34948423]
[1730859941185,0.0631951,2537.0,2536.4,0.7536]
[1730859941484,0.0631951,2537.0,2536.5,0.34960632]
[1730859941680,4.0048851,2537.0,2536.4,0.7536]
[1730859941881,0.0631951,2537.0,2536.4,0.7536]
[1730859942111,0.0631951,2537.0,2536.9,3.94181]
[1730859942295,0.0631951,2537.0,2536.9,4.85082099]
[1730859942459,0.0631951,2537.0,2536.9,5.60442099]
[1730859942994,0.0631951,2537.0,2536.9,1.66261099]
[1730859943145,0.0631951,2537.0,2536.9,5.60442099]
[1730859943673,0.0631951,2537.0,2536.9,5.60345784]
[1730859943873,3.94021,2538.0,2536.9,1.66164784]
[1730859944048,0.7549,2538.1,2537.6,3.9407]
[1730859944245,0.7549,2538.1,2537.4,3.94099]
[1730859944449,0.7549,2538.1,2537.4,3.94093]
[1730859944746,0.7549,2538.1,2537.1,4.50015867]
[1730859944986,0.7549,2538.1,2537.3,3.94106]
[1730859945158,0.7549,2538.1,2536.9,0.7536]
[1730859945159,3.0,2538.0,2537.1,3.94138]
[1730859945361,3.94039,2537.9,2537.1,3.9415]
[1730859945566,0.7977,2537.3,2536.3,0.7701]
[1730859945897,3.94117,2537.4,2536.4,4.29152366]
[1730859946106,3.94117,2537.4,2536.5,0.34902366]
[1730859946301,3.0,2537.5,2536.5,0.34902366]
[1730859946507,3.94142,2537.2,2536.4,0.34902366]
[1730859946700,4.24107,2537.4,2536.4,0.34902366]
[1730859946701,3.0,2537.4,2536.6,3.94226]
[1730859946899,3.0,2537.5,2536.4,4.29172275]
[1730859947087,3.0,2537.4,2536.4,4.29172275]
[1730859947429,3.0,2537.6,2536.8,3.94196]
[1730859947710,3.0,2537.6,2536.6,3.94213]
[1730859947711,3.94561,2537.7,2536.6,7.8844]
[1730859947917,3.94089,2537.5,2536.3,0.7701]
[1730859948121,0.005,2537.7,2537.2,3.94124]
[1730859948912,0.005,2537.7,2537.0,4.71167]
[1730859948913,0.005,2537.7,2537.0,4.71165]
[1730859949075,3.94108,2537.4,2536.6,0.7701]
[1730859949279,3.94108,2537.4,2536.4,4.58810947]
[1730859949280,3.9412,2537.3,2536.7,0.34882692]
[1730859949478,3.9412,2537.3,2536.5,0.34882692]
[1730859949675,0.7977,2537.2,2536.6,0.34882692]
[1730859949899,3.94183,2536.9,2536.1,1.55753145]
[1730859950115,0.7977,2537.2,2536.2,3.94288]
[1730859950116,3.94158,2537.1,2536.2,3.94288]
[1730859950332,3.94158,2537.1,2536.2,3.94281]
[1730859950475,3.94158,2537.1,2536.3,0.34902406]
[1730859950681,1.271628,2537.0,2536.2,4.71288]
[1730859950899,1.271628,2537.0,2535.9,0.7701]
[1730859951084,3.94217,2536.7,2535.9,1.11915395]
[1730859951282,3.94185,2536.9,2535.9,0.34905395]
[1730859951283,3.94181,2536.9,2535.9,0.34905395]
[1730859951519,0.7977,2537.0,2535.7,0.34905395]
[1730859951520,3.94246,2536.5,2535.7,0.34905395]
[1730859951727,0.7977,2537.0,2535.7,0.34905395]
[1730859952011,3.94322,2536.0,2535.6,0.34905395]
[1730859952215,4.74067,2536.2,2535.5,1.16814859]
[1730859952412,4.74067,2536.2,2535.3,5.54022575]
[1730859952616,4.74067,2536.2,2535.3,5.1911718]
[1730859952822,0.7977,2536.7,2535.7,3.94358]
[1730859952977,3.7977,2536.7,2535.3,5.11241859]
[1730859953177,3.7977,2536.7,2535.8,3.94337]
[1730859953429,3.7977,2536.7,2535.9,3.94334]
[1730859953841,7.73996,2536.7,2535.7,3.94363]
[1730859954151,9.993521,2537.3,2535.7,3.94363]
[1730859954152,4.73845,2537.6,2536.7,3.94211]
[1730859954303,0.7977,2537.6,2536.7,7.88412]
[1730859954498,0.7977,2537.6,2536.8,4.02077979]
[1730859954696,1.272034,2537.6,2536.7,3.94201]
[1730859954899,1.272034,2537.6,2536.8,3.94197]
[1730859955198,0.005,2537.7,2536.5,0.7701]
[1730859955402,0.005,2537.7,2537.6,3.94073]
[1730859955997,0.005,2537.7,2537.6,4.28984218]
[1730859956304,0.005,2537.7,2537.5,0.7701]
[1730859956506,0.005,2537.7,2537.6,0.34927676]
[1730859956708,0.005,2537.7,2537.6,4.29000676]
[1730859957538,0.7977,2538.5,2537.8,3.94027]
[1730859957848,3.9486,2539.0,2538.0,3.94009]
[1730859957849,0.7977,2539.0,2538.0,3.94009]
[1730859957999,10.0531861,2539.6,2538.2,4.70989]
[1730859958200,0.7977,2539.5,2538.2,5.0587942]
[1730859958411,0.7977,2539.5,2538.7,3.93901]
[1730859958839,0.7977,2539.5,2538.5,3.93932]
[1730859959141,4.73549,2539.5,2538.5,3.93932]
[1730859959353,0.7977,2539.5,2538.6,3.93914]
[1730859959561,0.7977,2539.5,2538.7,4.01776724]
[1730859959711,0.7977,2539.5,2538.8,3.93873]
[1730859960046,4.73549,2539.5,2538.7,3.939]
[1730859960252,0.7977,2539.5,2538.3,35.0]
[1730859960420,0.7977,2539.5,2537.7,0.58215637]
[1730859960421,0.8065,2538.8,2537.8,0.7594]
[1730859960626,0.8065,2538.8,2538.0,3.93999]
[1730859961041,6.062271,2539.3,2537.9,35.0]
[1730859961042,0.8065,2539.2,2537.9,35.0]
[1730859961226,0.8065,2539.5,2538.2,3.93979]
[1730859961442,0.8065,2539.9,2538.9,3.93868]
[1730859961611,0.8065,2539.9,2539.2,3.93818]
[1730859961813,0.8065,2539.9,2539.0,3.93843]
[1730859962050,0.8065,2539.9,2538.7,0.7594]
[1730859962051,3.93742,2539.8,2538.9,35.0]
[1730859962350,3.94295,2539.4,2538.6,3.93916]
[1730859962558,0.005,2539.4,2538.3,4.69899]
[1730859962851,3.93866,2539.0,2538.3,35.7594]
[1730859963055,4.74483,2539.2,2538.3,0.7594]
[1730859963436,3.93914,2538.7,2537.7,0.7594]
[1730859963650,4.74528,2538.9,2537.9,3.94025]
[1730859963957,4.74528,2538.9,2537.7,0.7594]
[1730859963958,3.9395,2538.4,2537.7,0.7594]
[1730859964112,0.8065,2538.9,2537.7,0.7594]
[1730859964310,0.8065,2538.9,2537.7,4.69991]
[1730859964517,3.93949,2538.4,2537.7,0.7594]
[1730859965044,3.94011,2538.0,2537.5,3.50444576]
[1730859965249,3.94071,2537.7,2537.5,3.50444576]
[1730859965422,6.94073,2537.6,2537.5,3.50444576]
[1730859965618,3.94244,2536.5,2536.4,2.33613704]
[1730859966052,0.8065,2536.7,2536.4,2.33613704]
[1730859966253,0.8065,2537.1,2536.1,3.94298]
[1730859966465,4.74803,2537.1,2536.0,3.9432]
[1730859966765,0.8065,2537.1,2536.1,0.7594]
[1730859966946,4.74742,2537.5,2536.5,3.94243]
[1730859967261,4.74742,2537.5,2536.6,4.02110038]
[1730859967428,0.8065,2537.5,2536.7,0.07883034]
[1730859967624,3.94104,2537.4,2536.1,0.7594]
[1730859967936,3.94215,2536.7,2535.8,7.80714146]
[1730859968250,3.9424,2536.6,2535.8,3.86365146]
[1730859968468,3.92596523,2536.7,2535.8,3.86365146]
[1730859968469,3.94256,2536.5,2535.8,3.86365146]
[1730859968631,4.74872,2536.7,2535.7,0.7594]
[1730859968632,4.74872,2536.7,2535.9,0.07885826]
[1730859968832,3.9423,2536.6,2535.7,0.7594]
[1730859969178,0.8065,2536.7,2535.9,3.94336]
[1730859969667,0.8065,2536.7,2535.9,38.94336]
[1730859969873,0.8065,2536.7,2535.9,35.0]
[1730859970158,1.281343,2536.7,2535.7,0.7594]
[1730859970357,3.94255,2536.5,2535.7,0.7594]
[1730859970557,3.94255,2536.5,2535.7,35.0]
[1730859970558,3.9426,2536.4,2535.7,35.0]
[1730859970730,3.94276,2536.3,2535.7,35.0]
[1730859971229,7.88507,2536.5,2535.5,3.94396]
[1730859971432,0.8065,2536.7,2535.4,4.70352]
[1730859971433,3.94277,2536.3,2535.4,4.70352]
[1730859971657,3.94277,2536.3,2535.5,35.0]
[1730859971869,3.94297,2536.2,2535.5,35.0]
[1730859972079,0.01,2536.6,2535.0,1.6594]
[1730859972239,0.01,2536.6,2535.2,3.94434]
[1730859972240,0.8065,2536.1,2535.2,3.94434]
[1730859972438,4.74962,2536.1,2535.2,3.94434]
[1730859972739,0.8065,2536.1,2535.3,35.0]
[1730859973044,0.8065,2536.9,2536.1,3.94295]
[1730859973255,0.8065,2536.9,2535.9,3.94326]
[1730859973566,4.416797,2536.8,2535.9,3.94326]
[1730859973870,3.94198,2536.8,2536.0,35.07885025]
[1730859974084,0.8065,2536.9,2536.1,3.94294]
[1730859974447,0.8065,2536.9,2535.9,3.94325]
[1730859974448,4.74841,2536.9,2535.9,3.94325]
[1730859974635,4.416821,2536.8,2536.0,35.0]
[1730859975133,4.416821,2536.8,2535.4,0.7594]
[1730859975134,3.94229,2536.6,2535.6,3.94378]
[1730859975329,4.336719,2536.5,2535.6,3.94378]
[1730859975532,3.94261,2536.4,2535.6,3.94378]
[1730859975729,3.94261,2536.4,2535.7,35.0]
[1730859976038,0.474841,2536.8,2536.2,3.94289]
[1730859976259,0.8065,2536.9,2535.7,35.0]
[1730859976260,0.8065,2536.9,2536.1,3.94295]
[1730859976459,3.94115,2537.4,2536.5,3.94229]
[1730859976679,3.94115,2537.4,2536.5,3.94243]
[1730859976838,4.72792,2537.8,2536.9,3.94179]
[1730859977031,3.93982,2538.2,2537.2,3.94131]
[1730859977275,3.94005,2538.1,2537.3,35.0]
[1730859977473,3.93996,2538.1,2537.3,35.0]
[1730859977968,3.94069,2537.7,2537.1,0.801]
[1730859978275,0.866718,2538.1,2536.7,0.801]
[1730859978276,3.94108,2537.4,2536.7,0.801]
[1730859978578,0.7874,2538.0,2537.2,3.94126]
[1730859978779,0.7874,2538.4,2537.7,3.94056]
[1730859979282,0.7874,2538.4,2537.8,3.94039]
[1730859979571,4.72596,2539.0,2538.1,3.93988]
[1730859979773,3.93873,2538.9,2538.1,3.93988]
[1730859979933,3.939,2538.8,2537.9,3.94018]
[1730859980133,3.939,2538.8,2537.7,3.94052]
[1730859980335,0.7874,2539.0,2537.6,3.9407]
[1730859980336,3.93945,2538.5,2537.6,3.9407]
[1730859980539,3.93945,2538.5,2537.6,3.94071]
[1730859980848,3.93899,2538.8,2537.8,3.94029]
[1730859981044,3.93875,2538.9,2537.8,3.94029]
[1730859981373,0.7874,2539.0,2538.0,3.93995]
[1730859981537,0.7874,2539.0,2538.1,3.93983]
[1730859981740,4.72606,2539.0,2538.1,3.93983]
[1730859981970,4.411292,2538.9,2538.0,3.94009]
[1730859982269,3.93918,2538.6,2537.8,3.94035]
[1730859982471,3.93903,2538.7,2537.8,3.94035]
[1730859983047,3.93917,2538.6,2537.6,38.94062]
[1730859983266,3.93917,2538.6,2537.4,4.74201]
[1730859983267,3.93961,2538.4,2537.4,4.74201]
[1730859983484,3.93922,2538.6,2537.6,3.94072]
[1730859983787,3.93826,2539.2,2538.3,3.93952]
[1730859983939,3.93826,2539.2,2538.1,3.93986]
[1730859984140,3.93855,2539.0,2538.1,3.93986]
[1730859984440,3.93877,2538.9,2538.1,3.93986]
[1730859984691,3.94074,2537.6,2537.3,0.801]
[1730859984880,0.7874,2538.2,2537.3,0.801]
[1730859985086,0.393855,2538.9,2537.6,3.94072]
[1730859985087,0.7874,2538.6,2537.6,3.94072]
[1730859985285,0.7874,2538.6,2537.3,0.801]
[1730859985491,4.72549,2539.3,2538.4,3.18943]
[1730859985794,0.7874,2539.3,2538.6,3.93912]
[1730859986090,0.005,2539.4,2538.9,3.93866]
[1730859986384,0.005,2539.4,2539.0,3.93855]
[1730859986555,0.005,2539.4,2539.1,3.93837]
[1730859986760,0.005,2539.4,2538.9,3.93866]
[1730859986972,0.005,2539.4,2539.0,3.93844]
[1730859987157,0.005,2539.4,2538.9,3.93866]
[1730859987557,0.0631951,2539.6,2539.1,3.93837]
[1730859987871,0.0631951,2539.6,2538.9,3.93869]
[1730859988059,0.0631951,2539.6,2538.7,38.93894]
[1730859988258,3.93791,2539.5,2538.6,0.801]
[1730859988460,3.93791,2539.5,2538.7,3.93889]
[1730859988976,4.47965561,2539.6,2538.7,3.93889]
[1730859989175,3.93781,2539.5,2538.7,3.93889]
[1730859989491,3.93781,2539.5,2538.6,0.801]
[1730859989492,3.93797,2539.4,2538.6,4.74015]
[1730859989723,3.93797,2539.4,2538.5,3.93929]
[1730859989856,3.93824,2539.2,2538.4,3.93948]
[1730859990051,3.93797,2539.4,2538.5,3.93932]
[1730859990347,4.42395396,2539.3,2538.5,3.93919]
[1730859990745,0.48584396,2539.3,2538.5,3.93919]
[1730859991171,4.42406396,2539.3,2538.5,3.93919]
[1730859991784,4.47968561,2539.6,2538.8,3.93885]
[1730859991990,4.0008751,2539.6,2538.9,0.07876383]
[1730859992149,0.0631951,2539.6,2538.9,0.07876383]
[1730859992347,0.0631951,2539.6,2539.0,3.93845]
[1730859992554,4.0009251,2539.6,2538.8,3.93877]
[1730859992860,4.0009251,2539.6,2538.6,3.93909]
[1730859992861,3.93827,2539.2,2538.4,3.93941]
[1730859993076,0.54200261,2539.6,2538.1,3.93988]
[1730859993077,4.76408,2539.0,2538.1,3.93988]
[1730859993493,4.76408,2539.0,2538.2,3.93974]
[1730859993698,6.052271,2538.8,2537.7,35.0]
[1730859993898,6.052271,2538.8,2536.8,1.55741814]
[1730859993899,4.76504,2538.3,2537.4,3.94102]
[1730859994187,4.76504,2538.3,2537.6,3.94061]
[1730859994188,0.8254,2538.3,2537.6,3.94061]
[1730859994495,3.9399,2538.2,2537.4,3.94096]
[1730859994662,0.8254,2538.3,2537.6,3.94072]
[1730859994908,4.76514,2538.3,2537.6,3.94072]
[1730859995423,3.93994,2538.2,2537.4,3.94092]
[1730859995793,0.8254,2538.3,2537.5,3.94086]
[1730859996031,0.8254,2538.3,2537.8,3.94042]
[1730859996223,0.8254,2538.3,2537.7,3.94046]
[1730859996431,0.8254,2538.8,2538.0,3.94003]
[1730859996628,4.76436,2538.8,2538.0,3.94003]
[1730859997135,0.8254,2538.8,2538.1,3.93994]
[1730859997305,1.695719,2538.8,2538.2,0.07878496]
[1730859997510,0.8254,2538.8,2537.9,3.94026]
[1730859997694,0.8254,2538.8,2538.1,3.93994]
[1730859997891,0.8254,2538.8,2538.2,3.93969]
[1730859998096,0.8254,2538.8,2538.1,3.93994]
[1730859998327,0.8254,2538.8,2538.1,3.93981]
[1730859998704,0.8254,2538.8,2538.0,0.759]
[1730859998891,0.8254,2538.8,2537.9,3.9402]
[1730859998892,3.93904,2538.7,2537.9,3.9402]
[1730859999092,3.93935,2538.5,2537.7,3.94048]
[1730859999401,0.8254,2538.8,2538.4,3.93934]
[1730859999834,0.0631951,2539.6,2538.7,3.93887]
[1730859999835,0.8254,2539.2,2538.7,3.93887]
[1730860000047,0.0631951,2539.6,2538.9,0.759]
[1730860000351,0.0631951,2539.6,2539.0,3.93843]
[1730860000504,0.0631951,2539.6,2539.1,3.93839]
[1730860001013,0.0631951,2539.6,2539.2,3.93819]
[1730860001215,0.0631951,2539.6,2539.0,3.93843]
[1730860001528,0.0631951,2539.6,2538.8,3.93881]
[1730860001739,0.0631951,2539.6,2538.9,3.93864]
[1730860002206,4.0008251,2539.6,2538.8,3.93881]
[1730860002431,4.0008251,2539.6,2538.2,0.759]
[1730860002432,0.8254,2539.2,2538.2,0.759]
[1730860002662,0.46326361,2539.6,2539.0,3.93845]
[1730860002663,0.8885951,2539.6,2539.0,3.93845]
[1730860003443,4.8262151,2539.6,2538.8,3.93876]
[1730860003652,5.30883661,2539.6,2538.6,3.93907]
[1730860003946,4.8262151,2539.6,2538.8,3.93886]
[1730860004163,4.8262151,2539.6,2538.9,0.07876332]
[1730860004335,3.93779,2539.5,2538.9,0.07876332]
[1730860004640,3.93779,2539.5,2538.8,3.93886]
[1730860004641,0.8878951,2539.6,2538.7,3.94902]
[1730860004849,0.8878951,2539.6,2538.6,1.34889978]
[1730860005035,0.0631951,2539.6,2539.3,3.93804]
[1730860005495,0.0631951,2539.6,2539.1,3.93833]
[1730860005788,0.0631951,2539.6,2538.9,3.93863]
[1730860006101,0.0631951,2539.6,2539.2,3.93824]
[1730860006739,0.0631951,2539.6,2539.0,3.93846]
[1730860006946,0.0631951,2539.6,2538.8,3.93879]
[1730860007178,0.0631951,2539.6,2538.9,0.34903213]
[1730860007179,0.8247,2539.5,2538.9,0.34903213]
[1730860007388,3.93825,2539.2,2538.5,4.28875368]
[1730860007551,3.93825,2539.2,2538.5,0.34943368]
[1730860007745,3.93825,2539.2,2538.6,3.93917]
[1730860008251,3.93825,2539.2,2538.4,7.87868]
[1730860008447,3.93825,2539.2,2538.5,4.28897018]
[1730860008643,3.93825,2539.2,2538.6,0.34969018]
[1730860008968,3.93843,2539.1,2538.6,0.34969018]
[1730860009172,3.93825,2539.2,2538.7,0.34969018]
[1730860009366,4.725873,2539.2,2538.5,0.34969018]
[1730860009575,4.76367,2538.8,2538.6,0.34969018]
[1730860009774,3.93917,2538.6,2538.1,0.34969018]
[1730860010007,0.8247,2538.8,2538.2,4.36853065]
[1730860010214,0.8247,2538.8,2537.9,0.55973806]
[1730860010215,4.76359,2538.8,2538.0,3.94006]
[1730860010386,4.76359,2538.8,2537.8,3.94041]
[1730860010387,0.8247,2538.8,2538.1,0.35009509]
[1730860010698,0.8247,2538.8,2538.2,0.35009509]
[1730860010699,3.9391,2538.7,2538.2,0.35009509]
[1730860010899,0.870276,2538.7,2538.0,0.35009509]
[1730860011097,3.94008,2538.1,2537.8,0.35009509]
[1730860011298,3.93967,2538.3,2537.6,0.07880237]
[1730860011524,0.8247,2538.4,2537.6,0.35023757]
[1730860011684,0.8247,2538.4,2537.7,3.94053]
[1730860011889,3.9397,2538.3,2537.6,4.36970862]
[1730860012085,0.8247,2538.4,2537.7,3.94055]
[1730860012292,0.8247,2538.4,2537.6,0.35023757]
[1730860012487,4.76422,2538.4,2537.7,3.94055]
[1730860012699,0.8247,2538.4,2537.7,4.29062482]
[1730860012915,0.8247,2538.4,2537.8,0.35005128]
[1730860013115,0.8247,2538.4,2537.7,7.88095]
[1730860013316,0.8247,2538.4,2537.8,4.29034206]
[1730860013522,0.8247,2538.4,2537.9,0.35002206]
[1730860014085,0.8247,2538.4,2537.8,0.35002206]
[1730860014086,3.93975,2538.3,2537.8,0.35002206]
[1730860014286,0.8247,2538.4,2537.7,0.35002206]
[1730860014492,4.76378,2538.7,2537.9,3.94012]
[1730860014704,4.76378,2538.7,2538.0,0.4284363]
[1730860014901,3.93946,2538.5,2537.8,3.9404]
[1730860015104,4.76374,2538.7,2537.9,4.28916088]
[1730860015329,4.76374,2538.7,2537.9,4.01900556]
[1730860015629,4.76374,2538.7,2537.8,3.94038]
[1730860015835,5.240114,2538.7,2537.8,3.94038]
[1730860016127,3.93918,2538.6,2537.9,3.94023]
[1730860016328,4.76379,2538.7,2537.9,4.01902054]
[1730860016625,4.76379,2538.7,2537.7,4.7228]
[1730860016626,3.93934,2538.5,2537.7,4.72274]
[1730860016832,3.93934,2538.5,2537.8,0.34876168]
[1730860016986,0.8247,2538.7,2537.8,0.34876168]
[1730860017187,0.8247,2538.7,2538.1,3.93984]
[1730860017650,3.93918,2538.6,2537.9,3.94018]
[1730860017810,3.93943,2538.5,2537.7,4.72278]
[1730860018015,3.93943,2538.5,2537.8,0.34878545]
[1730860018235,0.476388,2538.6,2537.9,0.07879218]
[1730860018435,0.8247,2538.7,2538.1,3.93993]
[1730860018636,4.76381,2538.7,2537.9,3.94011]
[1730860018953,5.240191,2538.7,2537.9,3.94011]
[1730860019731,5.240191,2538.7,2537.7,4.72279]
[1730860019732,3.93942,2538.5,2537.7,4.72278]
[1730860019937,3.93942,2538.5,2537.8,0.34888882]
[1730860020248,3.93977,2538.3,2537.5,3.94075]
[1730860020453,0.8247,2538.7,2537.6,0.4277918]
[1730860020757,3.0,2539.2,2538.6,3.93909]